bitfinex/quotes_BTCUSD_20250523
["timestamp","ask_amount","ask_price","bid_price","bid_amount"]
[1747980640856,0.21913477,110530.0,110520.0,6.16473388]
[1747980641054,0.21913477,110530.0,110520.0,6.42742041]
[1747980641660,0.25133477,110530.0,110520.0,6.42742041]
[1747980642237,0.24228795,110530.0,110520.0,6.42742074]
[1747980642438,0.24228795,110530.0,110520.0,6.43646854]
[1747980642637,0.26344088,110530.0,110520.0,6.228362]
[1747980643081,0.26344088,110530.0,110520.0,6.23741013]
[1747980643532,0.26344088,110530.0,110520.0,6.24588253]
[1747980643736,0.25439365,110530.0,110520.0,6.24588253]
[1747980643945,0.24534634,110530.0,110520.0,6.2368344]
[1747980644715,0.24534634,110530.0,110520.0,6.25944969]
[1747980645360,0.24534634,110530.0,110520.0,6.26849782]
[1747980646355,0.24534634,110530.0,110520.0,6.25944969]
[1747980647082,0.24534634,110530.0,110520.0,5.5945944]
[1747980647304,0.3348919,110530.0,110520.0,6.2502744]
[1747980650140,0.3348919,110530.0,110520.0,6.2503144]
[1747980650347,0.3348919,110530.0,110520.0,6.23883922]
[1747980650891,0.3348919,110530.0,110520.0,6.23036682]
[1747980651700,0.3348919,110530.0,110520.0,5.95924682]
[1747980651900,0.3348919,110530.0,110520.0,6.23036682]
[1747980652097,0.3466919,110530.0,110520.0,6.23036682]
[1747980654390,0.3466919,110530.0,110520.0,4.66738]
[1747980654615,0.3466919,110530.0,110520.0,0.39228]
[1747980654772,0.3466919,110530.0,110520.0,1.05824]
[1747980654773,0.41884523,110530.0,110520.0,1.05824]
[1747980654983,0.40704523,110530.0,110520.0,0.002]
[1747980655166,0.40704523,110530.0,110520.0,0.0197559]
[1747980655365,0.22031069,110520.0,110510.0,0.00051182]
[1747980655570,0.35275625,110520.0,110510.0,0.00051182]
[1747980655776,0.52290054,110520.0,110510.0,0.00051182]
[1747980655979,0.3570877,110520.0,110510.0,0.27163182]
[1747980656385,0.53723199,110520.0,110510.0,0.27163182]
[1747980656593,0.62244511,110520.0,110510.0,0.00051182]
[1747980656797,0.3670877,110520.0,110510.0,0.27163182]
[1747980657227,0.52823199,110520.0,110510.0,0.27263182]
[1747980657389,0.53823199,110520.0,110510.0,0.27263182]
[1747980657772,0.35175625,110520.0,110510.0,0.27263182]
[1747980657982,0.35275625,110520.0,110510.0,0.27263182]
[1747980658588,0.35275625,110520.0,110510.0,0.72907182]
[1747980659970,0.35275625,110520.0,110510.0,0.72911182]
[1747980660347,0.24289547,110500.0,110480.0,0.02810274]
[1747980660552,0.25469547,110500.0,110490.0,0.45657843]
[1747980660753,0.34424103,110500.0,110490.0,0.45657843]
[1747980660953,0.34424103,110500.0,110490.0,0.47633433]
[1747980661176,0.16324556,110500.0,110490.0,0.45657843]
[1747980661532,0.35589072,110500.0,110490.0,0.45657843]
[1747980661716,0.35589072,110500.0,110490.0,0.00013843]
[1747980661912,0.35589072,110500.0,110490.0,0.72777843]
[1747980662130,0.35489072,110500.0,110490.0,0.72777843]
[1747980662305,0.29239072,110500.0,110490.0,0.92689105]
[1747980662645,0.29239072,110500.0,110490.0,1.26689105]
[1747980662850,0.28334103,110500.0,110490.0,1.07701051]
[1747980663168,0.28334103,110500.0,110490.0,0.34937051]
[1747980663374,0.28334103,110500.0,110490.0,1.07701051]
[1747980663375,0.28434103,110500.0,110490.0,1.07701051]
[1747980664141,0.27254103,110500.0,110490.0,1.07701051]
[1747980664433,0.33684103,110500.0,110490.0,1.07701051]
[1747980666323,0.30364103,110500.0,110490.0,1.06701051]
[1747980667342,0.30364103,110500.0,110490.0,1.05777843]
[1747980667974,0.30364103,110500.0,110490.0,0.72764]
[1747980668516,0.33574103,110500.0,110490.0,0.72764]
[1747980669951,0.33574103,110500.0,110490.0,0.45648]
[1747980670150,0.33574103,110500.0,110490.0,0.72768]
[1747980671240,0.33574103,110500.0,110490.0,1.06768]
[1747980672657,0.33574103,110500.0,110490.0,1.07697203]
[1747980674930,0.33574103,110500.0,110490.0,0.79652]
[1747980675100,0.33574103,110500.0,110490.0,1.06772]
[1747980675299,0.25366227,110490.0,110480.0,0.01]
[1747980675504,0.40762816,110490.0,110480.0,0.48169105]
[1747980675705,0.40762816,110490.0,110480.0,0.75289105]
[1747980675905,0.40762816,110490.0,110480.0,0.48169105]
[1747980676100,0.40762816,110490.0,110480.0,0.75289105]
[1747980676300,0.48078149,110490.0,110480.0,0.48169105]
[1747980676501,0.48178149,110490.0,110480.0,0.75289105]
[1747980676757,0.48078149,110490.0,110480.0,0.75289105]
[1747980676948,0.47978149,110490.0,110480.0,0.75289105]
[1747980677154,0.02715831,110460.0,110450.0,0.53918473]
[1747980677363,0.02715831,110460.0,110450.0,6.30645675]
[1747980677529,0.02715831,110460.0,110450.0,6.31551021]
[1747980677729,0.02715831,110460.0,110450.0,6.32394257]
[1747980678544,0.20821932,110460.0,110450.0,3.78493557]
[1747980679180,0.20921932,110460.0,110450.0,3.79398927]
[1747980679397,0.21021932,110460.0,110450.0,3.80304281]
[1747980679605,0.02915831,110460.0,110450.0,3.81209618]
[1747980680091,0.02915831,110460.0,110450.0,3.80304281]
[1747980680092,0.03821119,110460.0,110450.0,3.80304281]
[1747980680308,0.002,110460.0,110450.0,3.86324281]
[1747980680553,0.002,110460.0,110450.0,3.8722961]
[1747980682321,0.01105231,110460.0,110450.0,3.8722961]
[1747980682529,0.21927172,110460.0,110450.0,3.80308281]
[1747980682727,0.03821071,110460.0,110450.0,3.82118964]
[1747980683695,0.02010486,110460.0,110450.0,3.82118915]
[1747980683898,0.03821038,110460.0,110450.0,3.82118915]
[1747980684100,0.0382103,110460.0,110450.0,3.82118915]
[1747980684364,0.03821095,110460.0,110450.0,3.79402911]
[1747980684562,0.03821095,110460.0,110450.0,3.79402903]
[1747980684802,0.02915799,110460.0,110450.0,3.81213578]
[1747980685022,0.03821087,110460.0,110450.0,3.81213578]
[1747980685172,0.35661225,110460.0,110450.0,2.83746353]
[1747980685382,0.35661225,110460.0,110450.0,1.38222353]
[1747980685592,0.35661225,110460.0,110450.0,1.72222353]
[1747980687944,0.35661225,110460.0,110450.0,1.91235464]
[1747980688144,0.002,110460.0,110450.0,1.94500224]
[1747980688359,0.002,110460.0,110450.0,1.24914224]
[1747980688579,0.002,110460.0,110450.0,2.00710224]
[1747980688785,0.002,110460.0,110450.0,2.0966878]
[1747980688983,0.002,110460.0,110450.0,2.08825544]
[1747980689236,0.002,110460.0,110450.0,1.33025544]
[1747980689368,0.002,110460.0,110450.0,2.08825544]
[1747980691472,0.01105239,110460.0,110450.0,2.05641544]
[1747980691626,0.002,110460.0,110450.0,2.05641544]
[1747980692145,0.01105231,110460.0,110450.0,1.66532988]
[1747980692343,0.01105231,110460.0,110450.0,1.93656988]
[1747980692946,0.01105231,110460.0,110450.0,1.17860988]
[1747980693151,0.02010486,110460.0,110450.0,0.78812988]
[1747980693360,0.02010478,110460.0,110450.0,1.93668988]
[1747980693562,0.01105231,110460.0,110450.0,1.94513816]
[1747980693775,0.002,110460.0,110450.0,1.94513816]
[1747980694204,0.01105239,110460.0,110450.0,1.18717816]
[1747980694419,0.02010494,110460.0,110450.0,1.94513816]
[1747980694793,0.01105239,110460.0,110450.0,0.79657816]
[1747980694997,0.02010494,110460.0,110450.0,1.94513816]
[1747980695203,0.29071151,110460.0,110450.0,0.96159945]
[1747980695448,0.35481209,110460.0,110450.0,0.88576828]
[1747980695638,0.35481209,110460.0,110450.0,0.89976828]
[1747980695846,0.35481209,110460.0,110450.0,1.17100828]
[1747980696051,0.4156133,110460.0,110450.0,1.17100828]
[1747980696255,0.35481209,110460.0,110450.0,1.17100828]
[1747980696455,0.35381209,110460.0,110450.0,1.51100828]
[1747980696692,0.35281209,110460.0,110450.0,1.51100828]
[1747980696916,0.35381209,110460.0,110450.0,1.51200828]
[1747980697546,0.35381209,110460.0,110450.0,0.74004828]
[1747980697763,0.35381209,110460.0,110450.0,1.34616828]
[1747980697968,0.35381209,110460.0,110450.0,1.00616828]
[1747980698215,0.35481209,110460.0,110450.0,1.27944828]
[1747980699521,0.35381209,110460.0,110450.0,0.40004828]
[1747980699737,0.35281209,110460.0,110450.0,0.69008418]
[1747980699944,0.35781209,110460.0,110450.0,0.67232828]
[1747980700795,0.35781209,110460.0,110450.0,0.40104828]
[1747980701005,0.35781209,110460.0,110450.0,0.67236828]
[1747980701210,0.35681209,110460.0,110450.0,0.67036828]
[1747980701629,0.35981209,110460.0,110450.0,0.67136828]
[1747980701851,0.35981209,110460.0,110450.0,0.67136455]
[1747980703557,0.35981209,110460.0,110450.0,0.67136485]
[1747980707559,0.35981209,110460.0,110450.0,0.00944485]
[1747980707688,0.35981209,110460.0,110450.0,0.28076485]
[1747980710883,0.35981209,110460.0,110450.0,0.62076485]
[1747980718295,0.03415848,110460.0,110450.0,0.84354397]
[1747980718463,0.02510503,110460.0,110450.0,0.23183258]
[1747980718634,0.02510503,110460.0,110450.0,0.29443258]
[1747980718833,0.03415791,110460.0,110450.0,5.33020958]
[1747980719040,0.19918457,110450.0,110440.0,0.63880085]
[1747980719279,0.35353013,110450.0,110440.0,0.63930825]
[1747980719674,0.35353013,110450.0,110440.0,0.91062825]
[1747980720086,0.35553013,110450.0,110440.0,0.91062825]
[1747980720290,0.01105321,110450.0,110440.0,4.57628512]
[1747980720490,0.02916004,110450.0,110440.0,4.97968512]
[1747980721103,0.03921374,110450.0,110440.0,4.98068512]
[1747980722400,0.03921374,110450.0,110440.0,4.97163101]
[1747980722401,0.03016004,110450.0,110440.0,4.97163101]
[1747980722603,0.23258465,110450.0,110440.0,1.35432825]
[1747980722829,0.26438465,110450.0,110440.0,0.45884825]
[1747980723077,0.26438465,110450.0,110440.0,1.23662825]
[1747980724687,0.35393021,110450.0,110440.0,0.35614825]
[1747980724835,0.35393021,110450.0,110440.0,1.24215331]
[1747980727743,0.35393021,110450.0,110440.0,0.97083331]
[1747980727962,0.35393021,110450.0,110440.0,0.88761246]
[1747980728168,0.35393021,110450.0,110440.0,0.90215331]
[1747980728390,0.35393021,110450.0,110440.0,1.24215331]
[1747980729482,0.35393021,110450.0,110440.0,1.22761246]
[1747980729483,0.36573021,110450.0,110440.0,1.22761246]
[1747980733092,0.36573021,110450.0,110440.0,0.95629246]
[1747980733311,0.36573021,110450.0,110440.0,0.3416074]
[1747980733542,0.35393021,110450.0,110440.0,0.0016074]
[1747980733742,0.62314864,110450.0,110440.0,0.01007199]
[1747980733913,0.71267015,110450.0,110440.0,0.01007199]
[1747980734160,0.46717721,110450.0,110440.0,0.01007199]
[1747980734373,0.73172085,110450.0,110440.0,0.00907199]
[1747980734593,0.47550242,110450.0,110440.0,0.00907199]
[1747980734804,0.37225542,110450.0,110440.0,0.0006074]
[1747980735037,0.36593021,110450.0,110440.0,0.0006074]
[1747980735244,0.36393021,110450.0,110440.0,0.0006074]
[1747980735450,0.43393021,110450.0,110440.0,0.0006074]
[1747980735863,0.43993021,110450.0,110440.0,0.0006074]
[1747980736068,0.52945172,110450.0,110440.0,0.0006074]
[1747980736338,0.77567015,110450.0,110440.0,0.0006074]
[1747980736752,0.51645172,110450.0,110440.0,0.0006074]
[1747980736963,0.78067015,110450.0,110440.0,0.0006074]
[1747980737828,1.39835536,110450.0,110420.0,0.00014]
[1747980738051,0.62178463,110430.0,110420.0,0.00014]
[1747980738263,0.97164916,110430.0,110420.0,0.00014]
[1747980738507,0.71875594,110430.0,110420.0,0.00014]
[1747980738728,0.62810984,110430.0,110420.0,0.00014]
[1747980738950,0.61810984,110430.0,110420.0,0.00014]
[1747980739376,0.26055673,110410.0,110400.0,0.33534]
[1747980739621,0.35010229,110410.0,110400.0,0.33534]
[1747980740044,0.35010229,110410.0,110400.0,0.60674]
[1747980740250,1.03610229,110410.0,110400.0,0.60674]
[1747980740485,1.04610229,110410.0,110400.0,0.61518022]
[1747980740696,1.04661225,110410.0,110400.0,0.61518022]
[1747980741140,1.04861225,110410.0,110400.0,0.61518022]
[1747980741385,1.03861225,110410.0,110400.0,0.61518022]
[1747980741626,1.04161225,110410.0,110400.0,0.60674]
[1747980742124,1.04161225,110410.0,110400.0,0.2714]
[1747980742375,1.04161225,110410.0,110400.0,0.27687373]
[1747980743051,1.04161225,110410.0,110400.0,0.00547373]
[1747980743509,1.04161225,110410.0,110400.0,0.27144]
[1747980744393,1.13113376,110410.0,110400.0,0.27144]
[1747980744597,1.04161225,110410.0,110400.0,0.27144]
[1747980745249,0.19021722,110400.0,110390.0,0.40530085]
[1747980745448,0.27976278,110400.0,110390.0,1.2797281]
[1747980746132,0.27976278,110400.0,110390.0,1.285189]
[1747980746387,0.31016278,110400.0,110390.0,0.690629]
[1747980746591,0.31116278,110400.0,110390.0,0.691629]
[1747980746803,0.31316278,110400.0,110390.0,0.691629]
[1747980747196,0.34636278,110400.0,110390.0,0.40564815]
[1747980747399,0.34636278,110400.0,110390.0,0.67162725]
[1747980747757,0.34636278,110400.0,110390.0,0.40018725]
[1747980747964,0.34636278,110400.0,110390.0,1.26618725]
[1747980748510,0.34636278,110400.0,110390.0,0.87542725]
[1747980749374,0.34636278,110400.0,110390.0,0.60398725]
[1747980749575,0.34636278,110400.0,110390.0,0.87542725]
[1747980751721,0.41851611,110400.0,110390.0,0.87542725]
[1747980751962,0.41851611,110400.0,110390.0,0.60398725]
[1747980752188,0.41851611,110400.0,110390.0,0.87546725]
[1747980752189,0.43588429,110400.0,110390.0,0.87546725]
[1747980752429,0.34636278,110400.0,110390.0,0.87546725]
[1747980753768,0.34636278,110400.0,110390.0,0.8787288]
[1747980755959,0.34636278,110400.0,110390.0,0.8788088]
[1747980756898,0.28276278,110400.0,110390.0,0.8788088]
[1747980757129,0.28276278,110400.0,110390.0,0.87554725]
[1747980757356,0.28276278,110400.0,110390.0,0.8900881]
[1747980759593,0.28276278,110400.0,110390.0,1.47516393]
[1747980759594,0.2918205,110400.0,110390.0,1.47516393]
[1747980759800,0.01205731,110400.0,110390.0,6.5381163]
[1747980760047,0.18370449,110410.0,110400.0,0.60865807]
[1747980760251,0.01862368,110410.0,110400.0,6.03535507]
[1747980760461,0.20882384,110410.0,110400.0,6.05347043]
[1747980760661,0.01862319,110410.0,110400.0,6.06252782]
[1747980760829,0.03673715,110410.0,110400.0,6.06252782]
[1747980761028,0.03673715,110410.0,110400.0,6.0625279]
[1747980761271,0.03873715,110410.0,110400.0,6.0625279]
[1747980761623,0.04073715,110410.0,110400.0,6.0625279]
[1747980761916,0.03873715,110410.0,110400.0,6.0625279]
[1747980762350,0.03873715,110410.0,110400.0,6.07158529]
[1747980762514,0.03673715,110410.0,110400.0,6.07158529]
[1747980762719,0.03773715,110410.0,110400.0,6.05447043]
[1747980762930,0.03873715,110410.0,110400.0,6.06452799]
[1747980763134,0.02968066,110410.0,110400.0,6.06452799]
[1747980763279,0.19271012,110410.0,110400.0,3.37086085]
[1747980763488,0.19271012,110410.0,110400.0,2.82639873]
[1747980763858,0.19271012,110410.0,110400.0,2.39059502]
[1747980764075,0.19271012,110410.0,110400.0,3.2475773]
[1747980764691,0.19271012,110410.0,110400.0,3.2566351]
[1747980764892,0.18365297,110410.0,110400.0,3.2566351]
[1747980765777,0.18365297,110410.0,110400.0,2.99346]
[1747980765986,0.33619853,110410.0,110400.0,0.40746085]
[1747980766190,0.33619853,110410.0,110400.0,1.24212]
[1747980769191,0.02717537,110390.0,110380.0,0.09293691]
[1747980769390,0.02717537,110390.0,110380.0,5.88766411]
[1747980769748,0.01811667,110390.0,110380.0,5.88766411]
[1747980770328,0.02717513,110390.0,110380.0,6.15910411]
[1747980770536,0.02817513,110390.0,110380.0,6.16110411]
[1747980770940,0.03823383,110390.0,110380.0,6.16310411]
[1747980771347,0.02917513,110390.0,110380.0,6.16310411]
[1747980772372,0.03823375,110390.0,110380.0,6.16310411]
[1747980772793,0.02917513,110390.0,110380.0,6.16310411]
[1747980773183,0.04729254,110390.0,110380.0,6.15404508]
[1747980773417,0.21035178,110390.0,110380.0,5.66517785]
[1747980773623,0.21035178,110390.0,110380.0,5.26268834]
[1747980773839,0.19223462,110390.0,110380.0,3.82180085]
[1747980774082,0.19223462,110390.0,110380.0,4.09324085]
[1747980774499,0.18317583,110390.0,110380.0,4.09324085]
[1747980774713,0.18317583,110390.0,110380.0,4.10230038]
[1747980775381,0.18317583,110390.0,110380.0,4.49318038]
[1747980775797,0.18317583,110390.0,110380.0,4.68343206]
[1747980776973,0.19223453,110390.0,110380.0,4.69249142]
[1747980777215,0.19223453,110390.0,110380.0,4.72479142]
[1747980778946,0.19223453,110390.0,110380.0,4.73385062]
[1747980779418,0.02011667,110390.0,110380.0,4.74290923]
[1747980779618,0.02917529,110390.0,110380.0,4.74290923]
[1747980779953,0.03823399,110390.0,110380.0,4.74290923]
[1747980780311,0.03823399,110390.0,110380.0,4.72479109]
[1747980780513,0.03823399,110390.0,110380.0,4.69249109]
[1747980780734,0.21035161,110390.0,110380.0,4.67437253]
[1747980780887,0.20129315,110390.0,110380.0,4.67437253]
[1747980781095,0.20129315,110390.0,110380.0,4.69249084]
[1747980781305,0.21035194,110390.0,110380.0,4.69249084]
[1747980781746,0.02011732,110390.0,110380.0,4.70154987]
[1747980782314,0.02011732,110390.0,110380.0,4.73434987]
[1747980783178,0.02917611,110390.0,110380.0,4.73434987]
[1747980783485,0.020117,110390.0,110380.0,4.73434987]
[1747980783808,0.020117,110390.0,110380.0,4.70154987]
[1747980784390,0.0291757,110390.0,110380.0,4.70154987]
[1747980784583,0.03823449,110390.0,110380.0,4.70154987]
[1747980784790,0.03823449,110390.0,110380.0,4.72439084]
[1747980785201,0.02011651,110390.0,110380.0,4.73344987]
[1747980785409,0.02917513,110390.0,110380.0,4.73344987]
[1747980785620,0.03823383,110390.0,110380.0,4.73344987]
[1747980786075,0.03823383,110390.0,110380.0,4.70154987]
[1747980786558,0.22846845,110390.0,110380.0,4.68343173]
[1747980786704,0.22846845,110390.0,110380.0,4.69249084]
[1747980787115,0.21941032,110390.0,110380.0,4.40293253]
[1747980787282,0.27485194,110390.0,110380.0,4.68343206]
[1747980787476,0.02917611,110390.0,110380.0,4.73445037]
[1747980787674,0.02917611,110390.0,110380.0,4.69249134]
[1747980787895,0.02917611,110390.0,110380.0,4.70155054]
[1747980788453,0.02917611,110390.0,110380.0,4.71060965]
[1747980788995,0.02917611,110390.0,110380.0,4.71060915]
[1747980789200,0.02917611,110390.0,110380.0,3.86140915]
[1747980789449,0.02917611,110390.0,110380.0,4.71060915]
[1747980789646,0.02917611,110390.0,110380.0,4.48412085]
[1747980790423,0.21035194,110390.0,110380.0,4.48412085]
[1747980791027,0.20129332,110390.0,110380.0,4.48412085]
[1747980791229,0.22343462,110390.0,110380.0,4.48743103]
[1747980791834,0.21437583,110390.0,110380.0,3.19773103]
[1747980792041,0.24747583,110390.0,110380.0,3.19773103]
[1747980792246,0.24747583,110390.0,110380.0,2.92629103]
[1747980792395,0.24747583,110390.0,110380.0,1.98813103]
[1747980792569,0.24747583,110390.0,110380.0,1.99660367]
[1747980792772,0.24747583,110390.0,110380.0,1.99329349]
[1747980793983,0.24747583,110390.0,110380.0,1.98482085]
[1747980796622,0.24747583,110390.0,110380.0,1.13562085]
[1747980796863,0.24747583,110390.0,110380.0,1.97014085]
[1747980798276,0.24747583,110390.0,110380.0,1.69870085]
[1747980798509,0.24747583,110390.0,110380.0,1.97014085]
[1747980798666,0.24747583,110390.0,110380.0,1.98989675]
[1747980798867,0.24747583,110390.0,110380.0,1.97014085]
[1747980800142,0.25653445,110390.0,110380.0,1.97014085]
[1747980800342,0.24155154,110390.0,110380.0,1.97014085]
[1747980800546,0.26549316,110390.0,110380.0,1.97014085]
[1747980802089,0.26449316,110390.0,110380.0,1.72528933]
[1747980802292,0.26549316,110390.0,110380.0,6.035867]
[1747980803029,0.23249316,110390.0,110380.0,6.035867]
[1747980803230,0.20129316,110390.0,110380.0,6.035867]
[1747980803413,0.19123412,110390.0,110380.0,6.035867]
[1747980803613,0.21840933,110390.0,110380.0,6.035867]
[1747980803925,0.21035128,110390.0,110380.0,6.036867]
[1747980804126,0.21035128,110390.0,110380.0,6.06046746]
[1747980804383,0.21035128,110390.0,110380.0,6.05140785]
[1747980804718,0.21035128,110390.0,110380.0,6.06046746]
[1747980804932,0.24355128,110390.0,110380.0,6.06373639]
[1747980805332,0.24355128,110390.0,110380.0,6.05467678]
[1747980805783,0.24355128,110390.0,110380.0,5.22921639]
[1747980806001,0.22543453,110390.0,110380.0,6.03995678]
[1747980806205,0.25703453,110390.0,110380.0,6.03995678]
[1747980807285,0.25703453,110390.0,110380.0,6.03668785]
[1747980813325,0.25703453,110390.0,110380.0,6.0410105]
[1747980815566,0.25703453,110390.0,110380.0,5.8523295]
[1747980817377,0.25703453,110390.0,110380.0,5.84800685]
[1747980817780,0.22543453,110390.0,110380.0,5.84800685]
[1747980818454,0.25653453,110390.0,110380.0,5.84800685]
[1747980818808,0.24747583,110390.0,110380.0,5.84800685]
[1747980820323,0.24747583,110390.0,110380.0,5.57656685]
[1747980820546,0.24747583,110390.0,110380.0,5.84800685]
[1747980821552,0.24747583,110390.0,110380.0,5.57656685]
[1747980821734,0.24747583,110390.0,110380.0,5.84800685]
[1747980829208,0.24747583,110390.0,110380.0,2.80818085]
[1747980829455,0.24747583,110390.0,110380.0,2.92432085]
[1747980831336,0.24747583,110390.0,110380.0,2.91932085]
[1747980833367,0.24747583,110390.0,110380.0,2.34070278]
[1747980833722,0.24747583,110390.0,110380.0,4.460429]
[1747980833941,0.24747583,110390.0,110380.0,5.264389]
[1747980834153,0.26559299,110390.0,110380.0,5.264389]
[1747980834368,0.2435512,110390.0,110380.0,5.264389]
[1747980834582,0.24355178,110390.0,110380.0,5.264389]
[1747980834795,0.2344925,110390.0,110380.0,5.264389]
[1747980834997,0.21035112,110390.0,110380.0,5.264389]
[1747980835207,0.21940991,110390.0,110380.0,5.655269]
[1747980835430,0.19223404,110390.0,110380.0,5.66980985]
[1747980835653,0.21940983,110390.0,110380.0,5.70220985]
[1747980835858,0.20129242,110390.0,110380.0,5.67886946]
[1747980836048,0.18317583,110390.0,110380.0,5.90152106]
[1747980836305,0.19223388,110390.0,110380.0,5.9910667]
[1747980836520,0.20129209,110390.0,110380.0,6.0001667]
[1747980836699,0.21035047,110390.0,110380.0,6.00922606]
[1747980836899,0.20129209,110390.0,110380.0,6.01828534]
[1747980837131,0.01105813,110390.0,110380.0,6.02734445]
[1747980837361,0.01105805,110390.0,110380.0,6.02734454]
[1747980837642,0.01105805,110390.0,110380.0,6.01828493]
[1747980837859,0.19223388,110390.0,110380.0,6.00016645]
[1747980838073,0.19223388,110390.0,110380.0,6.00012565]
[1747980838216,0.20129201,110390.0,110380.0,6.00012565]
[1747980838849,0.20129209,110390.0,110380.0,4.98779541]
[1747980839055,0.20129209,110390.0,110380.0,5.80081485]
[1747980839529,0.21035047,110390.0,110380.0,5.80081485]
[1747980839742,0.21940901,110390.0,110380.0,5.75935541]
[1747980839958,0.21035047,110390.0,110380.0,5.76841502]
[1747980840337,0.21035047,110390.0,110380.0,5.77747455]
[1747980840516,0.21035047,110390.0,110380.0,5.81983399]
[1747980840916,0.20129209,110390.0,110380.0,5.82889335]
[1747980841120,0.19223388,110390.0,110380.0,6.0191447]
[1747980841538,0.20129217,110390.0,110380.0,6.00102623]
[1747980841911,0.21035055,110390.0,110380.0,6.00102623]
[1747980842120,0.21035055,110390.0,110380.0,5.96772623]
[1747980842350,0.16509973,110390.0,110380.0,5.96772623]
[1747980842520,0.13413974,110390.0,110380.0,5.77747455]
[1747980842725,0.13413974,110390.0,110380.0,5.76841502]
[1747980842726,0.14319828,110390.0,110380.0,5.76841502]
[1747980842929,0.14319828,110390.0,110380.0,5.75935541]
[1747980843305,0.14319828,110390.0,110380.0,5.76841502]
[1747980843479,0.14319828,110390.0,110380.0,5.7729025]
[1747980843882,0.14319828,110390.0,110380.0,5.75935541]
[1747980844065,0.14319828,110390.0,110380.0,5.76841494]
[1747980844255,0.14319828,110390.0,110380.0,5.76841502]
[1747980844453,0.14319828,110390.0,110380.0,5.77747455]
[1747980845450,0.14319828,110390.0,110380.0,5.76841502]
[1747980845667,0.13413974,110390.0,110380.0,5.76841502]
[1747980845878,0.13413974,110390.0,110380.0,5.77747455]
[1747980846089,0.1431982,110390.0,110380.0,5.76841502]
[1747980846313,0.1431982,110390.0,110380.0,5.77747455]
[1747980846919,0.1431982,110390.0,110380.0,5.76841502]
[1747980847337,0.09794738,110390.0,110380.0,5.78197354]
[1747980847538,0.03623318,110390.0,110380.0,5.77291401]
[1747980847810,0.19929217,110390.0,110380.0,4.9598944]
[1747980848007,0.23117199,110400.0,110390.0,0.35454085]
[1747980848008,0.31058735,110400.0,110390.0,0.35454085]
[1747980848203,0.31018776,110400.0,110390.0,4.81496985]
[1747980848438,0.31018776,110400.0,110390.0,3.53564085]
[1747980849069,0.31018776,110400.0,110390.0,3.33204085]
[1747980849215,0.31118776,110400.0,110390.0,1.22114085]
[1747980849886,0.31118776,110400.0,110390.0,1.49258085]
[1747980850127,0.31118776,110400.0,110390.0,1.05618085]
[1747980850376,0.31118776,110400.0,110390.0,0.4438]
[1747980850584,0.31418776,110400.0,110390.0,0.71524]
[1747980851483,0.31418776,110400.0,110390.0,0.61244]
[1747980851702,0.31418776,110400.0,110390.0,1.46832]
[1747980852164,0.31418776,110400.0,110390.0,1.14492]
[1747980852340,0.40373332,110400.0,110390.0,0.341]
[1747980852514,0.40373332,110400.0,110390.0,1.14492]
[1747980854204,0.40373332,110400.0,110390.0,0.87348]
[1747980854409,0.40373332,110400.0,110390.0,1.14492]
[1747980859497,0.55373332,110400.0,110390.0,1.14492]
[1747980861766,0.55373332,110400.0,110390.0,0.73188]
[1747980862072,0.55373332,110400.0,110390.0,1.54152]
[1747980866570,0.43408735,110400.0,110390.0,1.98316085]
[1747980866957,0.44314532,110400.0,110390.0,1.98316085]
[1747980867162,0.43408776,110400.0,110390.0,1.98316085]
[1747980867571,0.46488776,110400.0,110390.0,1.98316085]
[1747980869738,0.43408735,110400.0,110390.0,1.98316085]
[1747980869932,0.4522032,110400.0,110390.0,1.98316085]
[1747980870564,0.43408686,110400.0,110390.0,1.98316085]
[1747980870766,0.45220222,110400.0,110390.0,1.98316085]
[1747980870942,0.46126019,110400.0,110390.0,1.98316085]
[1747980871150,0.4612601,110400.0,110390.0,1.98316085]
[1747980871547,0.45220222,110400.0,110390.0,1.98316085]
[1747980871774,0.46126019,110400.0,110390.0,1.98316085]
[1747980871973,0.45220288,110400.0,110390.0,1.98316085]
[1747980872170,0.42140279,110400.0,110390.0,1.98316085]
[1747980872405,0.44344491,110400.0,110390.0,1.98316085]
[1747980872572,0.46156059,110400.0,110390.0,1.98316085]
[1747980872785,0.42140303,110400.0,110390.0,1.98316085]
[1747980873426,0.45370303,110400.0,110390.0,1.98316085]
[1747980873726,0.44464515,110400.0,110390.0,1.98316085]
[1747980873928,0.41234474,110400.0,110390.0,2.01606085]
[1747980874106,0.42140262,110400.0,110390.0,1.98316085]
[1747980874307,0.44554523,110400.0,110390.0,1.98316085]
[1747980876010,0.46838767,110400.0,110390.0,1.98316085]
[1747980882053,0.45932987,110400.0,110390.0,1.71172085]
[1747980882254,0.45932987,110400.0,110390.0,1.98316085]
[1747980882806,0.45932987,110400.0,110390.0,1.9822524]
[1747980883015,0.46838751,110400.0,110390.0,1.9822524]
[1747980883431,0.43648751,110400.0,110390.0,1.9822524]
[1747980883651,0.39422938,110400.0,110390.0,2.17248702]
[1747980883896,0.40328694,110400.0,110390.0,2.20478702]
[1747980884137,0.40328694,110400.0,110390.0,2.21354556]
[1747980884379,0.204,110400.0,110390.0,2.23166223]
[1747980884582,0.21305723,110400.0,110390.0,2.22260402]
[1747980884863,0.23117201,110400.0,110390.0,2.32120779]
[1747980885284,0.24022957,110400.0,110390.0,2.32120779]
[1747980885820,0.23117201,110400.0,110390.0,2.32120779]
[1747980886021,0.22211454,110400.0,110390.0,2.32120779]
[1747980886228,0.23117193,110400.0,110390.0,2.32120779]
[1747980887046,0.22211454,110400.0,110390.0,2.32120779]
[1747980887268,0.204,110400.0,110390.0,2.32120779]
[1747980887472,0.01862294,110410.0,110400.0,0.20833233]
[1747980887750,0.00050996,110410.0,110400.0,5.04006133]
[1747980887956,0.00956645,110410.0,110400.0,5.12960689]
[1747980888170,0.00956637,110410.0,110400.0,5.12960689]
[1747980888328,0.01862286,110410.0,110400.0,5.12960689]
[1747980888522,0.02062286,110410.0,110400.0,5.12960689]
[1747980888947,0.0296796,110410.0,110400.0,5.12960689]
[1747980889145,0.0306796,110410.0,110400.0,5.13060689]
[1747980889883,0.0286796,110410.0,110400.0,5.13060689]
[1747980890042,0.0286796,110410.0,110400.0,5.13160689]
[1747980890243,0.01962286,110410.0,110400.0,5.13160689]
[1747980890439,0.01962286,110410.0,110400.0,5.10030689]
[1747980890440,0.0377365,110410.0,110400.0,5.10030689]
[1747980891658,0.04679348,110410.0,110400.0,5.10030689]
[1747980892267,0.07909348,110410.0,110400.0,5.10030689]
[1747980893456,0.07909413,110410.0,110400.0,5.37170689]
[1747980893668,0.07003707,110410.0,110400.0,5.37170689]
[1747980894103,0.06098009,110410.0,110400.0,5.37170689]
[1747980895958,0.06098009,110410.0,110400.0,5.92426689]
[1747980896191,0.05192319,110410.0,110400.0,5.92426689]
[1747980896668,0.06098001,110410.0,110400.0,5.92426689]
[1747980896845,0.01962319,110410.0,110400.0,5.92426689]
[1747980897050,0.01056645,110410.0,110400.0,5.92426689]
[1747980897258,0.40535186,110410.0,110400.0,2.7697]
[1747980897548,0.42346558,110410.0,110400.0,3.4207]